[Event "GER-ch Youth-U16 2022"]
[Site "Willingen"]
[Date "2022.06.05"]
[Round "1.12"]
[White "Ehrig, Leon Chris"]
[Black "Bock, Marlon"]
[Result "1/2-1/2"]
[ECO "B26"]
[WhiteElo "1890"]
[BlackElo "1816"]
[Annotator "NA RC COMBH"]
[PlyCount "65"]
[EventDate "2022.06.05"]
[EventType "swiss"]
[EventRounds "9"]
[EventCountry "GER"]
[SourceTitle "playchess.com"]
[Source "ChessBase"]
[SourceQuality "1"]
[TimeControl "40/4500+30:900+30"]

1. e4 {[%emt 0:00:00]} c5 {[%emt 0:00:00]} 2. Nc3 {[%emt 0:00:00]} Nc6 {[%emt 0:00:00]} 3. g3 {[%emt 0:00:00]} g6 {[%emt 0:00:00]} 4. Bg2 {[%emt 0:00:00]} Bg7 {[%emt 0:00:00]} 5. d3 {[%emt 0:00:00]} d6 {[%emt 0:00:00]} 6. Be3 {[%emt 0:00:00]} Nf6 {[%emt 0:00:00]} 7. Qd2 {[%emt 0:00:00]} Ng4 {[%emt 0:04:43]} 8. Bf4 {[%emt 0:07:00]} e5 9. Bg5 {[%emt 0:06:53]} f6 {[%emt 0:04:58]} 10. Be3 {[%emt 0:07:27]} Nxe3 {[%emt 0:01:19]} 11. Qxe3 {[%emt 0:04:03]} Nd4 {[%emt 0:06:53]} 12. O-O-O {[%emt 0:04:32]} b5 {[%emt 0:04:38]} 13. Nd5 {[%emt 0:07:47]} b4 {[%emt 0:08:00]} 14. Ne2 {[%emt 0:04:46]} Be6 {[%emt 0:06:41]} 15. Nxd4 {[%emt 0:06:50]} cxd4 {[%emt 0:02:21]} 16. Qe2 {[%emt 0:04:54]} a5 {[%emt 0:07:10]} 17. f4 {[%emt 0:05:09]} Bxd5 {[%emt 0:03:49]} 18. exd5 {[%emt 0:00:07]} O-O {[%emt 0:00:52]} 19. f5 {[%emt 0:05:01]} a4 {[%emt 0:04:24]} 20. Kb1 {[%emt 0:01:00]} Qb6 {[%emt 0:06:34]} 21. Be4 {[%emt 0:05:47]} Rfc8 {[%emt 0:02:56]} 22. Rc1 {[%emt 0:09:15]} a3 {[%emt 0:05:53]} 23. b3 {[%emt 0:00:20]} Qc5 {[%emt 0:01:15]} 24. c4 {[%emt 0:01:14]} dxc3 {[%emt 0:01:07]} 25. Kc2 {[%emt 0:00:29]} Rf8 {[%emt 0:03:51]} 26. Rcf1 {[%emt 0:00:50]} g5 {[%emt 0:02:33]} 27. h4 {[%emt 0:01:11]} Bh6 {[%emt 0:04:29]} 28. hxg5 {[%emt 0:01:49]} Bxg5 {[%emt 0:00:25]} 29. Rxh7 {[%emt 0:00:27]} Ra7 {[%emt 0:01:10]} 30. Rh2 {[%emt 0:01:09]} Rg7 {[%emt 0:01:19]} 31. Rfh1 {[%emt 0:01:26]} Kf7 {[%emt 0:01:33]} 32. Rh8 {[%emt 0:01:15]} Rfg8 {[%emt 0:02:02]} 33. R1h7 1/2-1/2

[Event "GER-ch Youth-U16 2022"]
[Site "Willingen"]
[Date "2022.06.05"]
[Round "1.13"]
[White "Weidenhoefer, Max"]
[Black "Ohler, Julius"]
[Result "0-1"]
[ECO "B12"]
[WhiteElo "1945"]
[BlackElo "2011"]
[Annotator "TA"]
[PlyCount "152"]
[EventDate "2022.06.05"]
[EventType "swiss"]
[EventRounds "9"]
[EventCountry "GER"]
[SourceTitle "playchess.com"]
[Source "ChessBase"]
[SourceQuality "1"]
[TimeControl "40/4500+30:900+30"]

{[%evp 9,152,58,46,47,54,21,46,20,18,22,29,31,31,0,78,70,90,53,100,47,81,82,80,83,88,83,88,39,89,25,72,48,53,42,75,52,53,31,58,45,52,62,66,-145,-149,-147,-47,-36,-47,-36,-16,-164,-167,-165,-164,-167,-112,-124,-122,-125,-130,-128,-106,-120,-118,-122,0,-28,45,0,0,0,0,0,0,0,25,0,170,31,116,0,0,-72,-72,-77,-71,-81,-33,-73,-76,-72,-75,-108,-110,-148,-139,-258,-261,-241,-256,-267,-260,-267,-267,-266,-236,-279,-279,-252,-215,-723,-739,-1130,-508,-458,-423,-252,0,-5197,-1014,-4606,-1739,-29973,-29974,-29975,-29974,-29972,-4229,-1987,-1761,-1598,-1032,-980,-929,-29976,-29975,-29973,-29974,-29974,-29975,-29975,-29974,-29967,-29967]} 1. e4 {[%emt 0:00:00]} c6 {[%emt 0:00:00]} 2. d4 {[%emt 0:00:00]} d5 {[%emt 0:00:00]} 3. e5 {[%emt 0:00:00]} Qb6 {[%emt 0:00:00]} 4. c4 {[%emt 0:02:54]} Bf5 {[%emt 0:00:00]} 5. Nc3 {[%emt 0:00:18]} dxc4 {[%emt 0:00:00]} 6. Bxc4 {[%emt 0:01:08][%cal Oe5e6] B12: Caro-Kann: Advance Variation.} e6 {[%emt 0:00:00] [#]} 7. h3 $146 {[%emt 0:02:48]} ({Predecessor:} 7. Nge2 Ne7 8. O-O Nd5 9. Ng3 Bg6 10. f4 Nd7 11. Bxd5 cxd5 12. f5 exf5 13. Nxd5 {1-0 (29) Krejic,I (2160)-Gabric,G (2196) Backa Palanka 2021}) 7... h6 {[%emt 0:00:00]} 8. Nf3 {[%emt 0:01:34] White is slightly better.} Ne7 {[%emt 0:00:00]} 9. O-O {[%emt 0:02:45]} Nd7 {[%emt 0:00:00]} 10. Qe2 {[%emt 0:02:06]} Nd5 {[%emt 0:00:00]} 11. Ne4 {[%emt 0:10:01]} Bxe4 {[%emt 0:00:00]} (11... Be7 $11) 12. Qxe4 $16 {[%emt 0:00:09]} Be7 {[%emt 0:00:00]} 13. Rd1 {[%emt 0:03:25]} Rd8 {[%emt 0:03:08]} (13... O-O-O $14) 14. Bd3 {[%emt 0:10:34]} (14. a3 $16) 14... Nb8 {[%emt 0:05:18]} 15. Bd2 {[%emt 0:09:43]} Na6 {[%emt 0:09:17]} 16. a3 {[%emt 0:12:47]} Nac7 {[%emt 0:04:49]} 17. b4 {[%emt 0:04:24]} a6 {[%emt 0:11:29]} 18. h4 {[%emt 0:00:52]} (18. Rdc1 $16) 18... g6 {[%emt 0:06:04]} ({Black should play} 18... g5 $14) 19. h5 {[%emt 0:06:04]} (19. g3 $16) 19... g5 {[%emt 0:00:13]} (19... gxh5 $11 20. Rdb1 Nb5) 20. Rdc1 {[%emt 0:00:09]} Kd7 {[%emt 0:09:31]} 21. Rc4 {[%emt 0:04:31]} Ke8 {[%emt 0:01:41]} 22. Qe1 {[%emt 0:02:46]} (22. a4 {is interesting.} Qa7 23. g3 Kd7 24. Qe1) 22... Qa7 {[%emt 0:02:16]} 23. g4 {[%emt 0:04:38]} Nb6 {[%emt 0:04:05]} 24. Rc2 {[%emt 0:00:02]} Nb5 {[%emt 0:00:41]} 25. Qe4 {[%emt 0:02:18]} Na4 {[%emt 0:01:19][%cal Rb5d4]} 26. Be3 {[%emt 0:00:16]} (26. Kg2 $14 {keeps the upper hand.}) 26... Nac3 $17 {[%emt 0:00:39] Pair of Knights!} 27. d5 {[%emt 0:01:01]} Qb8 {[%emt 0:12:04]} (27... Nxe4 $17 28. Bxa7 Nxa7 29. Bxe4 cxd5) 28. Qc4 $15 {[%emt 0:00:11]} Nxd5 {[%emt 0:02:57]} ({Reject} 28... cxd5 29. Qb3 d4 30. Bc1 $11) 29. Bd2 {[%emt 0:00:07]} Nb6 {[%emt 0:02:16]} 30. Qb3 {[%emt 0:00:09]} (30. Qe4 $11 {and White is okay.}) 30... Nd4 $36 {[%emt 0:00:39][%mdl 2048] Black is really pushing.} 31. Nxd4 {[%emt 0:00:06]} Rxd4 {[%emt 0:00:04]} 32. Be2 {[%emt 0:01:20]} Nd5 {[%emt 0:02:14]} (32... Qxe5 $19 33. Re1 Bd6) 33. Be3 {[%emt 0:00:26]} Nxe3 {[%emt 0:00:53]} ({Not} 33... Qxe5 34. Bxd4 Qxd4 35. Rd1 $11) 34. Qxe3 {[%emt 0:00:02]} Rd5 {[%emt 0:00:40]} 35. Bf3 {[%emt 0:01:51]} Rxe5 {[%emt 0:03:14]} 36. Qb6 {[%emt 0:00:27]} Rb5 {[%emt 0:02:30]} 37. Qd4 {[%emt 0:00:42]} f6 {[%emt 0:01:17]} (37... Qe5 $17 38. Qxe5 Rxe5) 38. Re1 {[%emt 0:00:45]} Kf7 {[%emt 0:01:51]} ({Black should try} 38... Qf4 $11 39. Qd3 (39. Qxf4 gxf4 40. Rxe6 Re5 $15) 39... Bd6) 39. Qe4 {[%emt 0:00:20][%mdl 1024] White has compensation.} (39. Rce2 $5 {[%cal Re2e6]} Re5 40. Rxe5 fxe5 41. Qe4 $11) 39... Re5 {[%emt 0:00:09]} 40. Qg6+ {[%emt 0:00:14]} Kf8 {[%emt 0:00:04]} 41. Rd1 {[%emt 0:00:00]} Qe8 {[%emt 0:00:00]} 42. Qd3 {[%emt 0:00:00]} Kf7 {[%emt 0:08:40]} 43. Rcd2 {[%emt 0:00:00]} a5 $2 {[%emt 0:03:13]} (43... Rg8 $1 $11 {and Black stays safe.}) 44. Qg6+ $18 {[%emt 0:03:36]} Kf8 {[%emt 0:00:05]} 45. Qxe8+ {[%emt 0:00:19]} (45. Rd7 $16 Re1+ 46. Rxe1 Qxd7 47. bxa5) 45... Kxe8 $11 {[%emt 0:00:07]} 46. Kg2 {[%emt 0:03:35]} (46. bxa5 $1 $11 Rxa5 47. Rd7) 46... axb4 $17 {[%emt 0:01:39]} 47. axb4 {[%emt 0:01:25]} Rb5 {[%emt 0:00:53]} 48. Rd7 {[%emt 0:03:36]} Rxb4 {[%emt 0:02:51]} (48... Kf7 $1 $17 {Threatens to win with ...Rc8.} 49. Rc7 Rxb4) 49. Rc7 {[%emt 0:00:45] aiming for Rc8+.} Kf7 {[%emt 0:00:59]} 50. Rdd7 {[%emt 0:00:34][%csl LRb7,LRe7]} Re8 {[%emt 0:00:04]} 51. Be2 {[%emt 0:02:33]} f5 {[%emt 0:02:13]} 52. gxf5 {[%emt 0:02:10]} exf5 {[%emt 0:00:05]} 53. Bd3 {[%emt 0:00:17]} (53. Rxb7 $17 {was worth a try.} Rxb7 54. Rxb7) 53... Kf6 $1 $19 {[%emt 0:01:03]} 54. Rxb7 {[%emt 0:00:43]} Rxb7 {[%emt 0:00:05]} 55. Rxb7 {[%emt 0:00:02]} Rd8 {[%emt 0:01:39]} 56. Bxf5 {[%emt 0:02:36]} Kxf5 {[%emt 0:00:04]} 57. Rxe7 {[%emt 0:00:02][%mdl 4096] Endgame KR-KR} Rd6 $1 {[%emt 0:00:11]} 58. f3 {[%emt 0:00:58]} Re6 {[%emt 0:00:14]} 59. Rf7+ {[%emt 0:00:20]} Ke5 $1 {[%emt 0:00:08] Strongly threatening ...c5.} 60. Rg7 $2 {[%emt 0:00:44]} (60. Kf2) 60... c5 {[%emt 0:00:16][%cal Bc6c5,Bc5c4,Bc4c3][%mdl 32]} 61. Rc7 {[%emt 0:00:20]} Kd4 {[%emt 0:00:20]} (61... Kd6 $142 62. Rc8 Kd5) 62. Rd7+ {[%emt 0:00:10]} Kc3 {[%emt 0:00:19]} 63. Rg7 {[%emt 0:00:46] [#]} Kd4 $2 {[%emt 0:00:39]} (63... Kc4 64. Rh7 Kd5 65. Rd7+ Kc6) (63... Kc4 $1 $19 {[%cal Rc4d5] Hoping for ...Kd5.} 64. Rd7 Kb5 65. Rb7+ Kc6) 64. Rg6 $2 {[%emt 0:00:16][%mdl 8192]} (64. Rd7+ $11 Kc3 65. Rg7) 64... Kd5 {[%emt 0:00:06]} 65. Rg8 {[%emt 0:00:14]} c4 {[%emt 0:00:07]} 66. Kf2 {[%emt 0:01:40]} c3 {[%emt 0:00:29]} 67. Rd8+ {[%emt 0:00:41]} Kc4 {[%emt 0:01:02]} 68. Rc8+ {[%emt 0:00:21]} Kd3 {[%emt 0:00:06]} (68... Kd4 $142 69. f4 gxf4 70. Rd8+ Kc5 71. Rg8 c2 72. Rg1 Kd4 73. Kf3 Rc6 74. Rc1 Kd3 75. Kxf4 Rc5 76. Kg4 Kd2 77. Rh1 c1=Q 78. Rxc1 Kxc1 79. Kf4 Rxh5 80. Kg3 Rf5 81. Kg4 Rf6 82. Kh5 Kd2 83. Kh4 Ke3 84. Kg4 Kf2 85. Kh4 Kf3 86. Kh3 Rd6 87. Kh2 Rd1 88. Kh3 Rh1#) 69. Rd8+ {[%emt 0:00:21] [#]} Kc2 $1 {[%emt 0:00:05]} 70. Rb8 {[%emt 0:00:10] Inhibits Rb6.} Kd2 {[%emt 0:00:11]} 71. Rd8+ {[%emt 0:00:03]} Kc1 {[%emt 0:00:04] ( -> ...Rb6)} 72. Rb8 {[%emt 0:00:14] Prevents Rb6.} c2 {[%emt 0:00:03] Black mates.} 73. Rb7 {[%emt 0:00:13]} Re5 {[%emt 0:00:31]} 74. Rb8 {[%emt 0:00:17]} Kd2 {[%emt 0:00:07]} 75. Rd8+ {[%emt 0:00:07]} Kc3 {[%emt 0:00:04]} 76. Rc8+ {[%emt 0:00:10]} Kd3 {[%emt 0:00:07] Weighted Error Value: White=0.48/Black=0.20 (precise)} 0-1

[Event "GER-ch Youth-U16 2022"]
[Site "Willingen"]
[Date "2022.06.05"]
[Round "1.14"]
[White "Metzdorf, Matteo"]
[Black "Mimkes, Antal"]
[Result "0-1"]
[ECO "B01"]
[WhiteElo "2009"]
[BlackElo "1696"]
[Annotator "TA"]
[PlyCount "136"]
[EventDate "2022.06.05"]
[EventType "swiss"]
[EventRounds "9"]
[EventCountry "GER"]
[SourceTitle "playchess.com"]
[Source "ChessBase"]
[SourceQuality "1"]
[TimeControl "40/4500+30:900+30"]

{[%evp 9,136,58,67,70,75,63,58,55,72,53,109,31,32,29,29,22,18,8,0,0,21,7,3,0,0,0,0,0,0,0,0,0,0,0,10,14,14,0,0,0,0,0,20,13,13,0,33,5,20,-172,0,-44,20,0,6,0,13,2,21,-16,-10,-119,-119,-119,-119,-202,-119,-366,-345,-568,-556,-607,-602,-583,-562,-12850,-6128,-29940,-29942,-29939,-29937,-29946,-29950,-29943,-29943,-7114,-7220,-29952,-29960,-29969,-29970,-29970,-29973,-29981,-29982,-29982,-29983,-29983,-29984,-29984,-29985,-29981,-29981,-29983,-29984,-29984,-29985,-29985,-29984,-29984,-29985,-29985,-29986,-29986,-29987,-29987,-29988,-29988,-29987,-29987,-29988,-29988,-29989,-29989,-29990,-29990,-29989,-29989,-29990]} 1. e4 {[%emt 0:00:00]} d5 {[%emt 0:00:00]} 2. exd5 {[%emt 0:00:00]} Nf6 {[%emt 0:00:00]} 3. Nf3 {[%emt 0:00:00]} Bg4 {[%emt 0:00:00]} 4. Bb5+ {[%emt 0:00:00]} Nbd7 {[%emt 0:00:00]} 5. Nc3 {[%emt 0:00:00]} a6 {[%emt 0:00:00]} 6. Be2 {[%emt 0:00:00] B01: Scandinavian Defence.} Nb6 {[%emt 0:00:00]} 7. O-O {[%emt 0:04:11]} Nbxd5 {[%emt 0:00:00]} 8. Nxd5 {[%emt 0:00:30] White is slightly better.} Qxd5 {[%emt 0:00:00]} 9. d4 {[%emt 0:02:36]} O-O-O {[%emt 0:00:00]} (9... Qd8 $14) 10. Ne5 {[%emt 0:13:19]} ({White should try} 10. c4 $16 Qf5 11. Qb3) 10... Bxe2 $14 {[%emt 0:00:00]} 11. Qxe2 {[%emt 0:01:40]} Nd7 {[%emt 0:00:00] [#]} 12. c4 $146 {[%emt 0:18:21]} ({Predecessor:} 12. Nf3 f6 13. c4 Qf7 14. d5 g5 15. b4 Re8 16. Re1 h6 17. Bb2 Bg7 18. a4 {1-0 (29) Slusnys,E (1948)-Stankevicius,V (1780) Vilnius 2015}) 12... Qe6 {[%emt 0:00:49]} 13. Re1 {[%emt 0:09:55]} Nxe5 {[%emt 0:03:04]} 14. dxe5 {[%emt 0:00:42]} Qf5 {[%emt 0:03:11]} 15. c5 {[%emt 0:10:55][%cal Oc5c6]} (15. Qe3 $5 {[%cal Re3a7]} Kb8 16. e6 $11) 15... Qd3 {[%emt 0:06:50] ...Qxe2 is the strong threat.} 16. Be3 {[%emt 0:03:56]} Qxe2 {[%emt 0:00:58]} 17. Rxe2 {[%emt 0:00:01]} e6 {[%emt 0:01:22]} 18. f4 {[%emt 0:07:00]} Rd3 {[%emt 0:02:57][%cal Od3e3]} 19. Rc1 {[%emt 0:02:28]} c6 {[%emt 0:02:23]} 20. Kf2 {[%emt 0:01:23]} Be7 {[%emt 0:00:57]} 21. Rd2 {[%emt 0:02:16]} Rhd8 {[%emt 0:01:15]} 22. Rxd3 {[%emt 0:01:13]} Rxd3 $11 {[%emt 0:00:01][%mdl 4096] Endgame KRB-KRB} 23. Ke2 {[%emt 0:00:25]} Rd5 {[%emt 0:00:20]} 24. b4 {[%emt 0:00:52]} Kc7 {[%emt 0:04:06]} 25. Rd1 {[%emt 0:01:23]} Bf8 {[%emt 0:03:14]} 26. a4 {[%emt 0:01:59]} Be7 {[%emt 0:00:51]} 27. Rd4 {[%emt 0:00:58]} Bf8 {[%emt 0:03:33]} 28. Kd3 {[%emt 0:00:17]} Be7 {[%emt 0:01:30]} 29. Ke4 $2 {[%emt 0:01:41] [#]} (29. Rxd5 $11 {and White stays safe.} cxd5 30. b5) 29... Kd7 $2 {[%emt 0:01:45]} ({Better is} 29... a5 $1 $19 30. bxa5 Rxc5) 30. Kf3 {[%emt 0:01:00]} Kc7 {[%emt 0:01:19]} (30... a5 $15) 31. g3 {[%emt 0:00:11]} Kd7 {[%emt 0:01:03][%cal Oa6a5]} 32. Ke2 {[%emt 0:00:34]} Kc7 {[%emt 0:00:16]} 33. Kd3 {[%emt 0:00:28]} Bf8 {[%emt 0:01:16]} 34. Kc4 {[%emt 0:00:36]} a5 {[%emt 0:04:15]} 35. Rxd5 {[%emt 0:01:28]} (35. Bd2 $11 {keeps the balance.}) 35... cxd5+ {[%emt 0:00:18] KB-KB. White is on the road to losing.} 36. Kb5 {[%emt 0:00:31]} axb4 {[%emt 0:00:06] aiming for ...b3.} 37. Bd4 {[%emt 0:00:33] [#]} (37. g4 $17) 37... b3 {[%emt 0:01:09]} ({Black should play} 37... Be7 $1 $19 {Threatens to win with ...b3.} 38. h4 (38. Kxb4 Kc6 $17) 38... b3) 38. a5 $2 {[%emt 0:00:22]} (38. g4 $17 {was forced.}) 38... Be7 $19 {[%emt 0:01:14] White must now prevent ...g5.} 39. h3 $2 {[%emt 0:00:38]} (39. h4 {was worth a try.} Bd8 40. Bc3) 39... g5 {[%emt 0:02:45]} 40. Bc3 {[%emt 0:00:35]} gxf4 {[%emt 0:01:07]} 41. gxf4 {[%emt 0:15:06]} Bh4 {[%emt 0:15:50]} 42. Kb4 {[%emt 0:00:00] [#]} Be1 $1 {[%emt 0:00:00][%mdl 512]} 43. Kxb3 {[%emt 0:00:00]} (43. Bxe1 b2) 43... Bxc3 {[%emt 0:00:00]} 44. Kxc3 {[%emt 0:00:00] KP-KP} Kc6 {[%emt 0:00:00]} 45. Kb4 {[%emt 0:00:00]} d4 {[%emt 0:00:00]} 46. Kc4 {[%emt 0:00:00]} d3 {[%emt 0:00:00]} 47. Kxd3 {[%emt 0:00:00]} Kxc5 {[%emt 0:00:00] And now ...Kb5 would win.} 48. f5 {[%emt 0:00:00]} Kb5 {[%emt 0:00:00] Black mates.} 49. Ke4 {[%emt 0:00:00]} Kxa5 {[%emt 0:00:00]} 50. f6 {[%emt 0:00:00]} b5 {[%emt 0:00:00]} 51. Kf4 {[%emt 0:00:00]} b4 {[%emt 0:00:00]} 52. Kg5 {[%emt 0:00:00]} b3 {[%emt 0:00:00]} 53. Kh6 {[%emt 0:00:00]} b2 {[%emt 0:00:00]} 54. Kg7 {[%emt 0:00:00]} b1=Q {[%emt 0:00:00]} 55. Kxf7 {[%emt 0:00:00]} Qf5 {[%emt 0:00:00][%csl LRe5,LRh3]} 56. Ke8 {[%emt 0:05:23]} Qxe5 {[%emt 0:00:00]} 57. f7 {[%emt 0:00:05]} Qb8+ {[%emt 0:00:00]} 58. Ke7 {[%emt 0:00:07]} Qc7+ {[%emt 0:00:00]} 59. Ke8 {[%emt 0:00:18]} e5 {[%emt 0:00:00]} 60. f8=Q {[%emt 0:00:26]} Qc8+ {[%emt 0:00:00]} 61. Kf7 {[%emt 0:00:27]} Qxf8+ {[%emt 0:00:00]} 62. Kxf8 {[%emt 0:00:10] KPP-KP} e4 {[%emt 0:00:00]} 63. h4 {[%emt 0:01:06]} h5 {[%emt 0:00:00]} 64. Kg7 {[%emt 0:00:05]} e3 {[%emt 0:00:00]} 65. Kg6 {[%emt 0:00:08]} e2 {[%emt 0:00:00]} 66. Kxh5 {[%emt 0:00:04]} e1=Q {[%emt 0:00:00]} 67. Kg5 {[%emt 0:00:45]} Qe8 {[%emt 0:00:00]} 68. h5 {[%emt 0:00:06]} Qh8 {[%emt 0:00:00] Weighted Error Value: White=0.58/Black=0.11 (very precise)} 0-1